[Event "Charlotte Spring IM Invitational 2021"]
[Site "Charlotte"]
[Date "2021.03.21"]
[Round "7.1"]
[White "Griffith, Kyron"]
[Black "Matros, Alexander"]
[Result "1/2-1/2"]
[ECO "B32"]
[WhiteElo "2372"]
[BlackElo "2380"]
[Annotator "ChessBase"]
[PlyCount "50"]
[EventDate "2021.03.17"]
[EventType "tourn"]
[EventCountry "USA"]
[SourceTitle "playchess.com"]
[Source "ChessBase"]
[SourceQuality "1"]
[TimeControl "5400+30"]

1. e4 {[%emt 0:00:00]} c5 {[%emt 0:00:00]} 2. Nf3 {[%emt 0:00:00]} Nc6 {[%emt 0:00:00]} 3. d4 {[%emt 0:00:00]} cxd4 {[%emt 0:00:00]} 4. Nxd4 {[%emt 0:00:00]} e5 {[%emt 0:00:32]} 5. Nb5 {[%emt 0:00:00]} d6 {[%emt 0:00:10]} 6. c4 {[%emt 0:00:00]} Be7 {[%emt 0:00:26]} 7. N1c3 {[%emt 0:00:08]} a6 {[%emt 0:00:08]} 8. Na3 {[%emt 0:00:04]} Nf6 {[%emt 0:01:07]} 9. Be2 {[%emt 0:00:33]} Be6 {[%emt 0:01:10]} 10. Be3 {[%emt 0:01:52]} O-O {[%emt 0:00:58]} 11. O-O {[%emt 0:00:04]} Rc8 {[%emt 0:01:39]} 12. Rc1 {[%emt 0:01:44]} Ne8 {[%emt 0:06:46]} 13. Qd2 {[%emt 0:03:03]} h6 {[%emt 0:01:22]} 14. Rfd1 {[%emt 0:04:52]} Bg5 {[%emt 0:01:09]} 15. Nc2 {[%emt 0:01:05]} Bxe3 {[%emt 0:35:29]} 16. Qxe3 {[%emt 0:02:39]} Qa5 {[%emt 0:01:27]} 17. a3 {[%emt 0:08:13]} Qc5 {[%emt 0:00:24]} 18. Qd2 {[%emt 0:00:04]} Nf6 {[%emt 0:07:51]} 19. b4 {[%emt 0:05:35]} Qb6 {[%emt 0:10:28]} 20. h3 {[%emt 0:27:24]} Rfd8 {[%emt 0:00:41]} 21. Rb1 {[%emt 0:00:24]} Rd7 {[%emt 0:11:41]} 22. Bf1 {[%emt 0:10:34]} Ne7 {[%emt 0:03:05]} 23. Ne3 {[%emt 0:02:01]} Nc6 {[%emt 0:00:02]} 24. Nc2 {[%emt 0:10:25]} Ne7 {[%emt 0:00:21]} 25. Ne3 {[%emt 0:06:45]} Nc6 {[%emt 0:00:20]} 1/2-1/2

[Event "Charlotte Spring IM Invitational 2021"]
[Site "Charlotte"]
[Date "2021.03.21"]
[Round "7.4"]
[White "Andrianov, Nikolay"]
[Black "Oberoi, Shelev"]
[Result "1-0"]
[ECO "B13"]
[WhiteElo "1816"]
[BlackElo "2161"]
[Annotator "ChessBase"]
[PlyCount "83"]
[EventDate "2021.03.17"]
[EventType "tourn"]
[EventCountry "USA"]
[SourceTitle "playchess.com"]
[Source "ChessBase"]
[SourceQuality "1"]
[TimeControl "5400+30"]

1. d4 {[%emt 0:00:00]} Nf6 {[%emt 0:00:00]} 2. Nf3 {[%emt 0:00:00]} g6 {[%emt 0:00:00]} 3. Bf4 {[%emt 0:00:00]} Bg7 {[%emt 0:00:44]} 4. e3 {[%emt 0:00:02]} c5 {[%emt 0:01:49]} 5. Be2 {[%emt 0:01:33]} cxd4 {[%emt 0:02:25]} 6. exd4 {[%emt 0:00:14]} d5 {[%emt 0:03:33]} 7. c3 {[%emt 0:03:49]} O-O {[%emt 0:03:42]} 8. O-O {[%emt 0:00:40]} Nc6 {[%emt 0:00:59]} 9. Nbd2 {[%emt 0:09:51]} Nh5 {[%emt 0:06:59]} 10. Be3 {[%emt 0:00:39]} Qd6 {[%emt 0:04:00]} 11. Re1 {[%emt 0:00:32]} b6 {[%emt 0:05:01]} 12. Nf1 {[%emt 0:07:45]} Bd7 {[%emt 0:05:52]} 13. Qd2 {[%emt 0:03:08]} e5 {[%emt 0:13:24]} 14. dxe5 {[%emt 0:02:22]} Nxe5 {[%emt 0:01:49]} 15. Nxe5 {[%emt 0:04:35]} Qxe5 {[%emt 0:00:39]} 16. Bf3 {[%emt 0:04:21]} Qd6 {[%emt 0:07:11]} 17. Bxd5 {[%emt 0:00:54]} Qc7 {[%emt 0:08:25]} 18. Bxa8 {[%emt 0:00:46]} Rxa8 {[%emt 0:00:12]} 19. Bd4 {[%emt 0:05:05]} Bc6 {[%emt 0:03:15]} 20. Bxg7 {[%emt 0:00:44]} Kxg7 {[%emt 0:00:50]} 21. Rad1 {[%emt 0:09:08]} Qc8 {[%emt 0:10:48]} 22. Ng3 {[%emt 0:05:51]} Nf6 {[%emt 0:01:45]} 23. Qd4 {[%emt 0:08:59]} Qb7 {[%emt 0:01:20]} 24. f3 {[%emt 0:00:42]} Qa6 {[%emt 0:00:19]} 25. a3 {[%emt 0:04:33]} Qb5 {[%emt 0:00:21]} 26. Re5 {[%emt 0:02:47]} Qa4 {[%emt 0:01:26]} 27. c4 {[%emt 0:07:00]} h6 {[%emt 0:00:42]} 28. Nf5+ {[%emt 0:01:38]} Kh7 {[%emt 0:01:21]} 29. Re7 {[%emt 0:01:26]} Rf8 {[%emt 0:00:35]} 30. Nd6 {[%emt 0:03:29]} Kg7 {[%emt 0:00:22]} 31. Rc7 {[%emt 0:01:23]} Ba8 {[%emt 0:01:28]} 32. Re1 {[%emt 0:01:05]} Qc2 {[%emt 0:01:21]} 33. h3 {[%emt 0:03:40]} g5 {[%emt 0:01:26]} 34. Ne8+ {[%emt 0:01:49]} Rxe8 {[%emt 0:01:13]} 35. Rxe8 {[%emt 0:00:02]} Bxf3 {[%emt 0:00:22]} 36. gxf3 {[%emt 0:00:13]} Qc1+ {[%emt 0:00:32]} 37. Kf2 {[%emt 0:00:22]} Qh1 {[%emt 0:00:23]} 38. Rc6 {[%emt 0:01:59]} Qh2+ {[%emt 0:00:53]} 39. Ke1 {[%emt 0:00:31]} Qg3+ {[%emt 0:00:05]} 40. Kd2 {[%emt 0:00:25]} Qg2+ {[%emt 0:00:19]} 41. Re2 {[%emt 0:00:14]} Qxf3 {[%emt 0:00:02]} 42. Qxf6+ {[%emt 0:00:15]} 1-0

[Event "Charlotte Spring IM Invitational 2021"]
[Site "Charlotte"]
[Date "2021.03.21"]
[Round "7.5"]
[White "Wang, Tianqi"]
[Black "Adamson, Robby"]
[Result "1/2-1/2"]
[ECO "B23"]
[WhiteElo "2307"]
[BlackElo "2239"]
[Annotator "ChessBase"]
[PlyCount "44"]
[EventDate "2021.03.17"]
[EventType "tourn"]
[EventCountry "USA"]
[SourceTitle "playchess.com"]
[Source "ChessBase"]
[SourceQuality "1"]
[TimeControl "5400+30"]

1. e4 {[%emt 0:00:00]} c5 {[%emt 0:04:28]} 2. Nc3 {[%emt 0:00:00]} Nc6 {[%emt 0:00:19]} 3. Bb5 {[%emt 0:00:00]} Nd4 {[%emt 0:00:22]} 4. Nf3 {[%emt 0:00:00]} a6 {[%emt 0:00:08]} 5. Bd3 {[%emt 0:00:04]} g6 {[%emt 0:00:35]} 6. b4 {[%emt 0:02:03]} d6 {[%emt 0:07:50]} 7. bxc5 {[%emt 0:10:36]} dxc5 {[%emt 0:00:29]} 8. h3 {[%emt 0:00:13]} Bg7 {[%emt 0:00:22]} 9. O-O {[%emt 0:00:43]} e6 {[%emt 0:21:01]} 10. Re1 {[%emt 0:02:57]} Ne7 {[%emt 0:00:53]} 11. Rb1 {[%emt 0:03:32]} Nec6 {[%emt 0:02:13]} 12. Bf1 {[%emt 0:06:29]} Qa5 {[%emt 0:06:08]} 13. Bb2 {[%emt 0:12:42]} O-O {[%emt 0:05:05]} 14. a3 {[%emt 0:15:28]} Rd8 {[%emt 0:07:08]} 15. Nxd4 {[%emt 0:02:49]} Bxd4 {[%emt 0:03:22]} 16. Qf3 {[%emt 0:10:24]} Be5 {[%emt 0:07:01]} 17. Qe3 {[%emt 0:07:04]} Nd4 {[%emt 0:09:05]} 18. Rbc1 {[%emt 0:00:59]} b5 {[%emt 0:00:09]} 19. Kh1 {[%emt 0:00:33]} Qc7 {[%emt 0:01:57]} 20. g3 {[%emt 0:01:05]} Bb7 {[%emt 0:01:05]} 21. Bg2 {[%emt 0:00:10]} Nc6 {[%emt 0:06:19]} 22. Nd1 {[%emt 0:01:42]} b4 {[%emt 0:00:30]} 1/2-1/2

[Event "Charlotte Spring IM Invitational 2021"]
[Site "Charlotte"]
[Date "2021.03.21"]
[Round "8.1"]
[White "Matros, Alexander"]
[Black "Wang, Tianqi"]
[Result "1/2-1/2"]
[ECO "D00"]
[WhiteElo "2380"]
[BlackElo "2305"]
[Annotator "ChessBase"]
[PlyCount "41"]
[EventDate "2021.03.17"]
[EventType "tourn"]
[EventCountry "USA"]
[SourceTitle "playchess.com"]
[Source "ChessBase"]
[SourceQuality "1"]
[TimeControl "5400+30"]

1. d4 {[%emt 0:00:00]} Nf6 {[%emt 0:00:00]} 2. Nc3 {[%emt 0:00:00]} d5 {[%emt 0:00:00]} 3. Bf4 {[%emt 0:00:12]} g6 {[%emt 0:00:00]} 4. e3 {[%emt 0:00:10]} Bg7 {[%emt 0:00:00]} 5. h4 {[%emt 0:00:31]} h5 {[%emt 0:00:05]} 6. Nf3 {[%emt 0:00:16]} Bg4 {[%emt 0:00:07]} 7. Be2 {[%emt 0:03:26]} Bxf3 {[%emt 0:00:30]} 8. Bxf3 {[%emt 0:00:14]} c6 {[%emt 0:00:04]} 9. Qd3 {[%emt 0:02:36]} Nbd7 {[%emt 0:00:11]} 10. O-O-O {[%emt 0:00:37]} Qa5 {[%emt 0:03:34]} 11. Kb1 {[%emt 0:01:09]} O-O-O {[%emt 0:03:47]} 12. e4 {[%emt 0:02:44]} dxe4 {[%emt 0:16:51]} 13. Nxe4 {[%emt 0:01:04]} Nxe4 {[%emt 0:00:50]} 14. Qxe4 {[%emt 0:00:58]} e6 {[%emt 0:11:15]} 15. Rhe1 {[%emt 0:01:33]} Nf6 {[%emt 0:01:34]} 16. Qe5 {[%emt 0:04:17]} Qxe5 {[%emt 0:01:16]} 17. Bxe5 {[%emt 0:01:15]} Ne8 {[%emt 0:00:25]} 18. c4 {[%emt 0:00:21]} Bxe5 {[%emt 0:00:50]} 19. dxe5 {[%emt 0:00:03]} Rxd1+ {[%emt 0:02:11]} 20. Rxd1 {[%emt 0:00:21]} Ng7 {[%emt 0:01:10]} 21. Be4 {[%emt 0:01:00]} 1/2-1/2

[Event "Charlotte Spring IM Invitational 2021"]
[Site "Charlotte"]
[Date "2021.03.21"]
[Round "8.2"]
[White "Oberoi, Shelev"]
[Black "Adamson, Robby"]
[Result "1-0"]
[ECO "B22"]
[WhiteElo "2199"]
[BlackElo "2235"]
[Annotator "ChessBase"]
[PlyCount "92"]
[EventDate "2021.03.17"]
[EventType "tourn"]
[EventCountry "USA"]
[SourceTitle "playchess.com"]
[Source "ChessBase"]
[SourceQuality "1"]
[TimeControl "5400+30"]

1. e4 {[%emt 0:00:00]} c5 {[%emt 0:03:26]} 2. c3 {[%emt 0:00:09]} d5 {[%emt 0:00:50]} 3. exd5 {[%emt 0:00:16]} Qxd5 {[%emt 0:00:01]} 4. Nf3 {[%emt 0:00:16]} Nc6 {[%emt 0:00:13]} 5. d4 {[%emt 0:00:14]} Bf5 {[%emt 0:00:15]} 6. Be3 {[%emt 0:01:20]} cxd4 {[%emt 0:00:52]} 7. Nxd4 {[%emt 0:01:49]} Nf6 {[%emt 0:00:12]} 8. Qb3 {[%emt 0:09:11]} Nxd4 {[%emt 0:09:59]} 9. Bxd4 {[%emt 0:02:47]} Qe4+ {[%emt 0:05:42]} 10. Be3 {[%emt 0:04:01]} Be6 {[%emt 0:08:22]} 11. Qb5+ {[%emt 0:07:18]} Bd7 {[%emt 0:01:49]} 12. Nd2 {[%emt 0:01:15]} Qc6 {[%emt 0:12:03]} 13. Qxc6 {[%emt 0:00:55]} Bxc6 {[%emt 0:00:34]} 14. Nc4 {[%emt 0:00:39]} Nd5 {[%emt 0:02:04]} 15. Ne5 {[%emt 0:03:27]} Nxe3 {[%emt 0:01:18]} 16. fxe3 {[%emt 0:00:21]} e6 {[%emt 0:09:09]} 17. a4 {[%emt 0:12:56]} Bc5 {[%emt 0:04:32]} 18. Bb5 {[%emt 0:01:36]} Bxb5 {[%emt 0:23:46]} 19. axb5 {[%emt 0:00:26]} Ke7 {[%emt 0:12:14]} 20. Ke2 {[%emt 0:00:33]} Rhd8 {[%emt 0:00:50]} 21. Nd3 {[%emt 0:06:40]} Rdc8 {[%emt 0:00:31]} 22. Ra4 {[%emt 0:01:50]} Bd6 {[%emt 0:01:16]} 23. h3 {[%emt 0:04:09]} Bc5 {[%emt 0:00:36]} 24. c4 {[%emt 0:04:02]} Bb6 {[%emt 0:00:39]} 25. Rc1 {[%emt 0:00:40]} Bc7 {[%emt 0:00:38]} 26. c5 {[%emt 0:02:42]} Bb8 {[%emt 0:00:37]} 27. Rca1 {[%emt 0:01:27]} f5 {[%emt 0:00:01]} 28. g4 {[%emt 0:01:29]} g6 {[%emt 0:00:00]} 29. gxf5 {[%emt 0:00:49]} exf5 {[%emt 0:00:16]} 30. b6 {[%emt 0:01:56]} a6 {[%emt 0:00:18]} 31. b4 {[%emt 0:00:47]} Bh2 {[%emt 0:00:28]} 32. b5 {[%emt 0:05:52]} a5 {[%emt 0:00:07]} 33. Rxa5 {[%emt 0:01:12]} Rab8 {[%emt 0:01:48]} 34. Rh1 {[%emt 0:06:20]} Bg3 {[%emt 0:00:20]} 35. Kf3 {[%emt 0:00:13]} Bh4 {[%emt 0:00:01]} 36. Ra7 {[%emt 0:01:26]} Ke6 {[%emt 0:00:40]} 37. Nf4+ {[%emt 0:05:54]} Ke5 {[%emt 0:00:30]} 38. Ra4 {[%emt 0:03:35]} Be7 {[%emt 0:00:47]} 39. Nd3+ {[%emt 0:00:23]} Ke6 {[%emt 0:00:05]} 40. Rc1 {[%emt 0:00:27]} g5 {[%emt 0:00:11]} 41. Rac4 {[%emt 0:01:06]} h5 {[%emt 0:00:45]} 42. c6 {[%emt 0:00:25]} bxc6 {[%emt 0:01:22]} 43. Rxc6+ {[%emt 0:00:42]} Kd7 {[%emt 0:00:41]} 44. Ne5+ {[%emt 0:00:17]} Kd8 {[%emt 0:00:01]} 45. Rc7 {[%emt 0:01:18]} g4+ {[%emt 0:00:15]} 46. hxg4 {[%emt 0:00:10]} hxg4+ {[%emt 0:00:06]} 1-0

[Event "Charlotte Spring IM Invitational 2021"]
[Site "Charlotte"]
[Date "2021.03.21"]
[Round "8.3"]
[White "Vijay, Keerthi K."]
[Black "Griffith, Kyron"]
[Result "0-1"]
[ECO "B12"]
[WhiteElo "2260"]
[BlackElo "2372"]
[Annotator "ChessBase"]
[PlyCount "115"]
[EventDate "2021.03.17"]
[EventType "tourn"]
[EventCountry "USA"]
[SourceTitle "playchess.com"]
[Source "ChessBase"]
[SourceQuality "1"]
[TimeControl "5400+30"]

1. e4 {[%emt 0:06:42]} c6 {[%emt 0:00:00]} 2. d4 {[%emt 0:00:16]} d5 {[%emt 0:00:00]} 3. f3 {[%emt 0:00:08]} g6 {[%emt 0:00:00]} 4. c4 {[%emt 0:00:47]} dxe4 {[%emt 0:01:15]} 5. fxe4 {[%emt 0:00:08]} e5 {[%emt 0:00:38]} 6. Nf3 {[%emt 0:02:46]} exd4 {[%emt 0:00:34]} 7. Qxd4 {[%emt 0:00:09]} Qxd4 {[%emt 0:00:47]} 8. Nxd4 {[%emt 0:00:07]} Bg7 {[%emt 0:00:46]} 9. Nb3 {[%emt 0:00:19]} a5 {[%emt 0:02:17]} 10. Nc3 {[%emt 0:05:06]} a4 {[%emt 0:04:57]} 11. Nc5 {[%emt 0:00:25]} a3 {[%emt 0:00:54]} 12. Rb1 {[%emt 0:01:11]} Nf6 {[%emt 0:08:43]} 13. bxa3 {[%emt 0:17:32]} Nfd7 {[%emt 0:04:32]} 14. N3a4 {[%emt 0:01:06]} O-O {[%emt 0:09:32]} 15. Bd3 {[%emt 0:03:58]} Rd8 {[%emt 0:27:40]} 16. Be2 {[%emt 0:15:27]} Bf8 {[%emt 0:14:45]} 17. Nxd7 {[%emt 0:06:43]} Nxd7 {[%emt 0:00:27]} 18. Bd1 {[%emt 0:00:10]} Nc5 {[%emt 0:01:00]} 19. Nxc5 {[%emt 0:01:55]} Bxc5 {[%emt 0:00:03]} 20. Bc2 {[%emt 0:12:12]} b6 {[%emt 0:02:19]} 21. Bb2 {[%emt 0:07:54]} Be6 {[%emt 0:00:46]} 22. Bb3 {[%emt 0:02:41]} Rd3 {[%emt 0:00:41]} 23. Rd1 {[%emt 0:01:15]} Re3+ {[%emt 0:00:40]} 24. Kd2 {[%emt 0:00:02]} Rxe4 {[%emt 0:01:25]} 25. Rhe1 {[%emt 0:00:07]} Rg4 {[%emt 0:02:53]} 26. g3 {[%emt 0:00:09]} Bxc4 {[%emt 0:01:53]} 27. Kc2 {[%emt 0:00:37]} Bxa3 {[%emt 0:01:41]} 28. Bxa3 {[%emt 0:05:11]} Rxa3 {[%emt 0:00:04]} 29. Rd8+ {[%emt 0:00:07]} Kg7 {[%emt 0:00:03]} 30. Kb2 {[%emt 0:00:06]} Ra7 {[%emt 0:01:28]} 31. h3 {[%emt 0:00:02]} Bxb3 {[%emt 0:01:20]} 32. hxg4 {[%emt 0:00:05]} Bd5 {[%emt 0:01:06]} 33. a3 {[%emt 0:00:32]} Ra4 {[%emt 0:00:21]} 34. g5 {[%emt 0:00:07]} Rg4 {[%emt 0:00:03]} 35. Re5 {[%emt 0:01:41]} b5 {[%emt 0:01:17]} 36. Re3 {[%emt 0:04:52]} Rxg5 {[%emt 0:00:21]} 37. Kc3 {[%emt 0:00:06]} Rg4 {[%emt 0:00:17]} 38. Kd2 {[%emt 0:00:02]} h5 {[%emt 0:00:37]} 39. Ke2 {[%emt 0:00:48]} Rc4 {[%emt 0:01:37]} 40. Kf2 {[%emt 0:00:19]} Kf6 {[%emt 0:00:25]} 41. Rde8 {[%emt 0:01:51]} Kg5 {[%emt 0:01:00]} 42. Rh8 {[%emt 0:00:56]} Kg4 {[%emt 0:00:22]} 43. Rhe8 {[%emt 0:00:02]} f5 {[%emt 0:01:15]} 44. R8e7 {[%emt 0:00:06]} g5 {[%emt 0:00:54]} 45. Rg7 {[%emt 0:00:03]} Be4 {[%emt 0:00:27]} 46. Rg8 {[%emt 0:01:15]} Rc2+ {[%emt 0:00:32]} 47. Kf1 {[%emt 0:00:44]} Bf3 {[%emt 0:01:23]} 48. Rb3 {[%emt 0:00:50]} Be4 {[%emt 0:02:18]} 49. Rg7 {[%emt 0:00:21]} Bg2+ {[%emt 0:01:05]} 50. Ke1 {[%emt 0:00:20]} Bd5 {[%emt 0:00:03]} 51. Rd3 {[%emt 0:00:07]} Rb2 {[%emt 0:01:05]} 52. Rc3 {[%emt 0:00:17]} f4 {[%emt 0:00:48]} 53. gxf4 {[%emt 0:00:39]} Kxf4 {[%emt 0:00:01]} 54. Rg6 {[%emt 0:01:25]} g4 {[%emt 0:00:42]} 55. Rh6 {[%emt 0:00:18]} Kg5 {[%emt 0:00:04]} 56. Rh7 {[%emt 0:00:55]} h4 {[%emt 0:00:01]} 57. Rd3 {[%emt 0:00:43]} h3 {[%emt 0:00:15]} 58. Rd1 {[%emt 0:04:18]} 0-1

[Event "Charlotte Spring IM Invitational 2021"]
[Site "Charlotte"]
[Date "2021.03.21"]
[Round "8.4"]
[White "Chasin, Nico"]
[Black "Martin Del Campo C., Roberto"]
[Result "1-0"]
[ECO "A53"]
[WhiteElo "2293"]
[BlackElo "2295"]
[Annotator "ChessBase"]
[PlyCount "81"]
[EventDate "2021.03.17"]
[EventType "tourn"]
[EventCountry "USA"]
[SourceTitle "playchess.com"]
[Source "ChessBase"]
[SourceQuality "1"]
[TimeControl "5400+30"]

1. d4 {[%emt 0:00:08]} Nf6 {[%emt 1:30:30]} 2. c4 {[%emt 0:00:05]} d6 {[%emt 0:00:00]} 3. Nc3 {[%emt 0:01:01]} Bf5 {[%emt 0:00:00]} 4. f3 {[%emt 0:01:04]} e5 {[%emt 0:00:00]} 5. d5 {[%emt 0:00:58]} e4 {[%emt 0:00:00]} 6. Be3 {[%emt 0:08:55]} h5 {[%emt 0:00:00]} 7. g3 {[%emt 0:01:37]} Nbd7 {[%emt 0:00:00]} 8. Nh3 {[%emt 0:05:08]} Qe7 {[%emt 0:00:00]} 9. Qd4 {[%emt 0:04:41]} exf3 {[%emt 0:00:00]} 10. exf3 {[%emt 0:00:10]} Ne5 {[%emt 0:00:00]} 11. Kf2 {[%emt 0:05:02]} g6 {[%emt 0:00:00]} 12. Bg5 {[%emt 0:30:12]} Bg7 {[%emt 0:00:00]} 13. Qh4 {[%emt 0:07:36]} O-O {[%emt 0:00:00]} 14. Ng1 {[%emt 0:07:33]} Rfe8 {[%emt 0:00:00]} 15. Rd1 {[%emt 0:00:26]} Bc2 {[%emt 0:00:00]} 16. Rd2 {[%emt 0:06:46]} Nfg4+ {[%emt 0:00:00]} 17. fxg4 {[%emt 0:02:01]} f6 {[%emt 0:00:00]} 18. Bf4 {[%emt 0:01:52]} g5 {[%emt 0:00:00]} 19. Qxh5 {[%emt 0:01:23]} Bg6 {[%emt 0:00:00]} 20. Qh3 {[%emt 0:01:26]} gxf4 {[%emt 0:00:00]} 21. Re2 {[%emt 0:05:03]} Bd3 {[%emt 0:00:00]} 22. gxf4 {[%emt 0:01:22]} Bxe2 {[%emt 0:00:00]} 23. Bxe2 {[%emt 0:00:10]} Ng6 {[%emt 0:00:00]} 24. Qg3 {[%emt 0:00:35]} f5 {[%emt 0:00:00]} 25. gxf5 {[%emt 0:00:47]} Nh4 {[%emt 0:00:00]} 26. Qd3 {[%emt 0:01:10]} Qf6 {[%emt 0:00:00]} 27. Bg4 {[%emt 0:01:25]} Re7 {[%emt 0:00:00]} 28. Nge2 {[%emt 0:00:51]} Rae8 {[%emt 0:00:00]} 29. Rg1 {[%emt 0:00:20]} Kf8 {[%emt 0:00:17]} 30. Rg3 {[%emt 0:00:11]} Qh6 {[%emt 0:02:00]} 31. Nd1 {[%emt 0:01:33]} Re4 {[%emt 0:04:44]} 32. Rh3 {[%emt 0:01:39]} Bf6 {[%emt 0:04:00]} 33. b3 {[%emt 0:00:23]} R8e7 {[%emt 0:00:27]} 34. Bf3 {[%emt 0:01:12]} Rxe2+ {[%emt 0:00:40]} 35. Bxe2 {[%emt 0:00:08]} Qxf4+ {[%emt 0:00:01]} 36. Kg1 {[%emt 0:01:27]} Nxf5 {[%emt 0:00:50]} 37. Nf2 {[%emt 0:01:16]} Bd4 {[%emt 0:01:27]} 38. Rf3 {[%emt 0:00:01]} Rg7+ {[%emt 0:00:03]} 39. Kh1 {[%emt 0:00:07]} Bxf2 {[%emt 0:04:31]} 40. Qxf5+ {[%emt 0:00:07]} Kg8 {[%emt 0:00:00]} 41. Rxf2 {[%emt 0:00:06]} 1-0